Cogmind - Beta 14 @@@ ROGUE MODE // 2024.10.08 @ 16:46:36 Player: Gatamar Result: Core destroyed Performance ------------- Evolutions (2) 1000 Regions Visited (6) 1200 Robots Destroyed (31) 155 Value Destroyed (1151) 1151 Prototype IDs (2) 40 Alien Tech Used (0) 0 Bonus (322) 322 TOTAL SCORE: 3868 Bonus ------- High Alert Combat Kills 22 Aligned with FarCom 300 Cogmind --------- Core Integrity 0/550 Matter 113/300 Energy 234/265 System Corruption 1% Temperature Critical (917) Movement Core (650) Ox12 Location -8/Storage Parts ------- > --- POWER (3) -------- Improved Ion Engine > --- PROPULSION (2) --- Light Treads > --- UTILITY (4) ------ Heat Sink Large Storage Unit > --- WEAPON (2) ------- Advanced Beam Cannon Assault Cannon > --- INVENTORY (15) --- Aluminum Leg Improved Heat Sink ECM Suite Improved Light Armor Plating EM Pulse Gun EM Pulse Gun Particle Gun AWS/Thermal Particle Cannon Grenade Launcher Rocket Launcher Datajack Peak State ------------ > --- POWER ------------ Improved Ion Engine > --- PROPULSION ------- Aluminum Leg > --- UTILITY ---------- Large Storage Unit Signal Interpreter Heavy Armor Plating > --- WEAPON ----------- AWS/Thermal > --- INVENTORY -------- Light Treads Improved Heat Sink ECM Suite Improved Light Armor Plating EM Pulse Gun EM Pulse Gun Particle Gun Particle Cannon Advanced Beam Cannon Assault Cannon Grenade Launcher Rocket Launcher Datajack [Rating: 29] Favorites ----------- Power Ion Engine Engine Ion Engine Propulsion Light Treads Treads Light Treads Leg Aluminum Leg Utility Large Storage Unit Device Structural Scanner Storage Large Storage Unit Processor Signal Interpreter Protection Utility Shielding Weapon EM Pulse Gun Energy Gun EM Pulse Gun Energy Cannon Advanced Beam Cannon Ballistic Cannon Assault Cannon Build | -11 -10 -10 -10 -9 -8 -8 ------- Run | Yrd Mat Min Exi Min Mat Sto Slots Evolved 4 | . . . . . 4 . Power 2 | . . . . . 2 . Propulsion . | . . . . . . . Utility 2 | . . . . . 2 . Weapon . | . . . . . . . Parts Attached 29 | 7 2 . 1 . 9 10 Power 6 | 2 . . . . 1 3 Engine 6 | 2 . . . . 1 3 Core . | . . . . . . . Reactor . | . . . . . . . Propulsion 8 | 2 . . . . 3 3 Treads 5 | 2 . . . . . 3 Leg 3 | . . . . . 3 . Wheel . | . . . . . . . Hover . | . . . . . . . Flight . | . . . . . . . Utility 9 | 1 2 . . . 4 2 Device 2 | . 1 . . . . 1 Storage 2 | 1 1 . . . . . Processor 2 | . . . . . 2 . Hackware . | . . . . . . . Protection 3 | . . . . . 2 1 Artifact . | . . . . . . . Weapon 6 | 2 . . 1 . 1 2 Energy Gun 4 | 2 . . 1 . 1 . Energy Cannon 1 | . . . . . . 1 Ballistic Gun . | . . . . . . . Ballistic Cannon 1 | . . . . . . 1 Launcher . | . . . . . . . Special Weapon . | . . . . . . . Impact Weapon . | . . . . . . . Slashing Weapon . | . . . . . . . Piercing Weapon . | . . . . . . . Special Melee Weapon . | . . . . . . . Unidentified Prototypes 2 | . . . 1 . . 1 Parts Lost 11 | . . . . . 5 6 Power 4 | . . . . . 2 2 Propulsion 4 | . . . . . 2 2 Utility 3 | . . . . . 1 2 Weapon . | . . . . . . . Highest Loss Streak 4 | . . . . . 2 4 To Critical Strikes . | . . . . . . . Average Slot Usage (%) 85 | . 97 100 93 85 73 73 Engine 13 | . 14 14 14 14 13 13 Treads 21 | . 28 28 28 28 12 11 Leg 1 | . . . . . 4 4 Device 8 | . 11 14 14 14 . . Storage 12 | . 14 14 14 14 9 9 Processor 3 | . . . . . 11 8 Protection 4 | . . . . . 14 10 Energy Gun 16 | . 28 28 21 14 9 2 Peak Build Rating 29 | 6 8 8 22 22 28 29 Average Rating 17 | 5 7 8 14 22 26 23 On Entrance 13 | . 6 8 8 22 22 27 Naked Turns . | . . . . . . . Heaviest Build 63 | 14 30 30 34 34 40 63 Greatest Support 40 | 40 40 40 40 40 40 40 Greatest Overweight (x) 5 | . . . . . 3 5 Average Overweight (x) . | . . . . . . 1 Largest Inventory Capacity 15 | 8 15 15 15 15 15 15 Average Capacity 13 | 6 11 15 15 15 15 15 Most Carried 15 | 4 11 11 14 14 15 15 Average Carried 11 | 1 8 11 11 13 14 14 Final Capacity 15 | 8 15 15 15 15 15 15 Final Carried 15 | 4 11 11 13 14 15 13 Class Distribution -------------------- 98% | Mutant Dominant Class ---------------- Mutant | -10/Materials Mutant | -10/Mines Mutant | -10/Exiles Mutant | -9/Mines Mutant | -8/Materials Mutant | -8/Storage Resources | -11 -10 -10 -10 -9 -8 -8 ----------- Run | Yrd Mat Min Exi Min Mat Sto Matter Collected 543 | 210 87 . . . 63 183 Remotely . | . . . . . . . Salvage Created 1183 | . 253 . . . 455 475 Parts 63 | . 18 . . . 17 28 Haulers Intercepted . | . . . . . . . Recyclers Shooed . | . . . . . . . Parts Field Recycled . | . . . . . . . Retrieved Matter . | . . . . . . . Parts Self-Destructed . | . . . . . . . Prevented . | . . . . . . . Kills | -11 -10 -10 -10 -9 -8 -8 ------- Run | Yrd Mat Min Exi Min Mat Sto Combat Hostiles Destroyed 25 | . 7 . . . 7 11 Guns 19 | . 5 . . . 7 7 Cannons 4 | . . . . . . 4 AOE 2 | . 2 . . . . . Classes Destroyed 6 | . 3 . . . 3 . Builder 1 | . . . . . 1 . Watcher 5 | . 1 . . . 2 2 Swarmer 5 | . 3 . . . . 2 Grunt 15 | . 4 . . . 5 6 Sentry 4 | . . . . . 1 3 Heavy 1 | . . . . . 1 . Best Kill Streak 8 | . 3 . . . 3 8 Combat Bots Only 7 | . 3 . . . 3 7 Max Kills in Single Turn 2 | . 2 . . . 1 1 Gunslinging 1 | . 1 . . . . . Exploded 2 | . 2 . . . . . Melee . | . . . . . . . Uniques/NPCs Destroyed . | . . . . . . . Combat | -11 -10 -10 -10 -9 -8 -8 -------- Run | Yrd Mat Min Exi Min Mat Sto Hostile Shots Fired 122 | . 17 . . . 25 80 Missed 36 | . 9 . . . 11 16 Damage Taken 2123 | . 164 . . . 653 1306 Core 571 | . 21 . . . 85 465 Absorbed by Shields . | . . . . . . . Redirected to Shielding 14 | . . . . . 4 10 Core Remaining (%) 95 | 100 . . . 91 . . Volleys Fired 40 | . 16 . . . . 24 Largest 2 | . 2 . . . . 2 Hottest 112 | . 80 . . . . 112 Shots Fired 191 | . 32 . . . 65 94 Gun 145 | . 32 . . . 65 48 Cannon 46 | . . . . . . 46 Launcher . | . . . . . . . Special . | . . . . . . . Kinetic 24 | . . . . . . 24 Thermal 135 | . . . . . 65 70 Explosive . | . . . . . . . Electromagnetic 32 | . 32 . . . . . Robot Hit Streak 13 | . 6 . . . 11 13 Robot Miss Streak 6 | . 5 . . . 4 6 Penetration Max . | . . . . . . . Secondary Targets 1 | . 1 . . . . . Max Gunslinging Chain 1 | . 1 . . . . . Autonomous 114 | . . . . . 65 49 Shots Hit Robots 122 | . 18 . . . 50 54 Core Hits 46 | . 11 . . . 15 20 Critical Kills . | . . . . . . . Critical Parts Destroyed . | . . . . . . . Critical Strikes 1 | . . . . . . 1 Blast 1 | . . . . . . 1 Melee Attacks . | . . . . . . . Impact . | . . . . . . . Slashing . | . . . . . . . Piercing . | . . . . . . . Sneak Attacks . | . . . . . . . Combat Hostiles . | . . . . . . . Follow-up Attacks . | . . . . . . . Damage Inflicted 3393 | . 330 . . . 1595 1468 Guns 2509 | . 256 . . . 1326 927 Cannons 541 | . . . . . . 541 Explosions 343 | . 74 . . . 269 . Melee . | . . . . . . . Ramming . | . . . . . . . Kinetic 355 | . . . . . . 355 Thermal 2622 | . 74 . . . 1435 1113 Explosive 160 | . . . . . 160 . Electromagnetic 256 | . 256 . . . . . Impact . | . . . . . . . Slashing . | . . . . . . . Piercing . | . . . . . . . Highest Corruption 1 | . 1 1 1 1 1 1 Average Corruption 1 | . 1 1 1 1 1 1 Corruption Purged . | . . . . . . . Corruption Blocked . | . . . . . . . Effects 18 | . 1 1 2 3 6 5 Message Errors 5 | . . . . 3 2 . Matter Fused 6 | . 1 1 1 . 2 1 Heat Flow Errors 2 | . . . . . 1 1 Energy Discharges 4 | . . . 1 . 1 2 Alerts 1 | . . . . . . 1 Overload Shots . | . . . . . . . Overflow Damage 111 | . . . . . 111 . Projectiles . | . . . . . . . Explosions 111 | . . . . . 111 . Melee . | . . . . . . . Knockbacks 5 | . . . . . . 5 Impact . | . . . . . . . Kinetic 4 | . . . . . . 4 Secondary 1 | . . . . . . 1 Self-Inflicted Damage 264 | . . . . . 264 . Shots 3 | . . . . . 3 . Rammed 1 | . . . . . 1 . Targets Rammed 1 | . . . . . 1 . Kicked . | . . . . . . . Crushed . | . . . . . . . Highest Temperature 917 | . 102 . . . 213 917 Average Temperature 223 | . 34 . . . 114 321 Received Heat Transfer 753 | . 51 . . . 81 621 Effects 40 | . . . . . . 40 Shutdowns 11 | . . . . . . 11 Energy Bleed 2 | . . . . . . 2 Interference 4 | . . . . . . 4 Matter Decay 4 | . . . . . . 4 Short Circuit 1 | . . . . . . 1 Damage (minor) 2 | . . . . . . 2 Damage (major) 11 | . . . . . . 11 Damage (core) 5 | . . . . . . 5 Siege Activations . | . . . . . . . Robots Corrupted . | . . . . . . . Combat Hostiles . | . . . . . . . Parts Fried 1 | . 1 . . . . . Impact Corruptions . | . . . . . . . Robots Melted . | . . . . . . . Combat Hostiles . | . . . . . . . Parts Melted 10 | . . . . . 10 . Heat Transferred 3282 | . . . . . 1765 1517 Parts Sabotaged . | . . . . . . . Parts Stolen . | . . . . . . . Parts Stripped . | . . . . . . . Power Chain Reactions 1 | . 1 . . . . . Alert | -11 -10 -10 -10 -9 -8 -8 ------- Run | Yrd Mat Min Exi Min Mat Sto Peak Influence 462 | . 205 25 . . 214 462 Initial 90 | . . 25 . . . 90 Average 101 | . 48 25 . . 113 353 Maximum Alert Level 2 | . 1 . . . 1 2 Low Security (%) 78 | 100 93 100 . 100 77 13 Level 1 17 | . 6 . . . 22 62 Level 2 3 | . . . . . . 24 Level 3 . | . . . . . . . Level 4 . | . . . . . . . Level 5 . | . . . . . . . High Security . | . . . . . . . Max Security . | . . . . . . . Squads Dispatched 11 | . 2 . . . 4 5 Investigation 1 | . . . . . 1 . Extermination . | . . . . . . . Reinforcement 7 | . 2 . . . 3 2 Assault . | . . . . . . . Garrison 3 | . . . . . . 3 Intercept . | . . . . . . . Searches Triggered . | . . . . . . . Construction Impeded . | . . . . . . . Haulers Reinforced . | . . . . . . . Active Scanning Responses . | . . . . . . . Cargo Convoy Interrupts . | . . . . . . . Stealth | -11 -10 -10 -10 -9 -8 -8 --------- Run | Yrd Mat Min Exi Min Mat Sto Distress Signals 4 | . . . . . 1 3 Communications Jammed . | . . . . . . . Distress Signals . | . . . . . . . Times Spotted 46 | . 10 . . . 16 20 Peak Tracking Total 5 | . 3 . . . 4 5 Tactical Retreats 4 | . 1 . . . 1 2 Traps | -11 -10 -10 -10 -9 -8 -8 ------- Run | Yrd Mat Min Exi Min Mat Sto Traps Triggered 1 | . 1 . . . . . Indirectly . | . . . . . . . Trap Hack Attempts . | . . . . . . . Triggered . | . . . . . . . Disarmed . | . . . . . . . Reprogrammed . | . . . . . . . Reused . | . . . . . . . Traps Extracted . | . . . . . . . Installed . | . . . . . . . Triggered . | . . . . . . . Machines | -11 -10 -10 -10 -9 -8 -8 ---------- Run | Yrd Mat Min Exi Min Mat Sto Machines Disabled 7 | . . . . . 4 3 Max in Single Turn 3 | . . . . . 3 1 Machines Repaired . | . . . . . . . Machines Dismantled . | . . . . . . . Machines Sabotaged . | . . . . . . . Overloaded Fab Kills . | . . . . . . . Hacking | -11 -10 -10 -10 -9 -8 -8 --------- Run | Yrd Mat Min Exi Min Mat Sto Machines Accessed 4 | . 2 . . . 2 . Terminals 2 | . 1 . . . 1 . Fabricators . | . . . . . . . Repair Stations . | . . . . . . . Recycling Units 1 | . 1 . . . . . Scanalyzers 1 | . . . . . 1 . Garrison Access . | . . . . . . . Total Hacks 6 | . 3 . . . 3 . Successful 2 | . 1 . . . 1 . Failed 4 | . 2 . . . 2 . Catastrophic . | . . . . . . . Database Lockouts . | . . . . . . . Manual 1 | . . . 1 . . . Terminals 4 | . 2 . . . 2 . Fabricators . | . . . . . . . Repair Stations . | . . . . . . . Recycling Units 1 | . 1 . . . . . Scanalyzers 1 | . . . . . 1 . Garrison Access . | . . . . . . . Terminal Hacks . | . . . . . . . Fabricator Hacks . | . . . . . . . Repair Station Hacks . | . . . . . . . Recycling Unit Hacks 1 | . 1 . . . . . Report Inventory 1 | . 1 . . . . . Scanalyzer 1 | . . . . . 1 . Insert Component 1 | . . . . . 1 . Garrison Access Hacks . | . . . . . . . Unauthorized Hacks . | . . . . . . . Terminals . | . . . . . . . Fabricators . | . . . . . . . Repair Stations . | . . . . . . . Recycling Units . | . . . . . . . Scanalyzers . | . . . . . . . Garrison Access . | . . . . . . . Data Cores Recovered . | . . . . . . . Used . | . . . . . . . Hacking Detections 2 | . 1 . . . 1 . Full Trace Events 1 | . . . . . 1 . Feedback Events 1 | . . . . . 1 . Corruption 1 | . . . . . 1 . Feedback Blocked . | . . . . . . . Robot Schematics Acquired . | . . . . . . . Robots Built . | . . . . . . . Authchips . | . . . . . . . Time . | . . . . . . . Total Robot Build Rating . | . . . . . . . Part Schematics Acquired . | . . . . . . . Parts Built . | . . . . . . . Authchips . | . . . . . . . Time . | . . . . . . . Total Part Build Rating . | . . . . . . . Parts Repaired . | . . . . . . . Time . | . . . . . . . Parts Recycled . | . . . . . . . Recycled Matter . | . . . . . . . Retrieved Matter . | . . . . . . . Retrieved Components . | . . . . . . . Parts Scanalyzed . | . . . . . . . Part Schematics Acquired . | . . . . . . . Parts Damaged . | . . . . . . . Bothacking | -11 -10 -10 -10 -9 -8 -8 ------------ Run | Yrd Mat Min Exi Min Mat Sto Used RIF Installer . | . . . . . . . Robots Hacked . | . . . . . . . Non-combat . | . . . . . . . Combat . | . . . . . . . Robot Hacks Applied . | . . . . . . . Relay Couplers Released . | . . . . . . . Fabnet Peak Effective % . | . . . . . . . Robots Rewired . | . . . . . . . Allies Hacked . | . . . . . . . Hacks Repelled . | . . . . . . . Allies | -11 -10 -10 -10 -9 -8 -8 -------- Run | Yrd Mat Min Exi Min Mat Sto Total Allies 1 | . . 1 . . . . Largest Group 1 | . . 1 1 . . . Highest-Rated Group 31 | . . 31 31 . . . Highest-Rated Ally 31 | . . 31 31 . . . Total Orders . | . . . . . . . Ally Attacks . | . . . . . . . Total Damage . | . . . . . . . Kills . | . . . . . . . Allies Corrupted . | . . . . . . . Allies Melted . | . . . . . . . Intel | -11 -10 -10 -10 -9 -8 -8 ------- Run | Yrd Mat Min Exi Min Mat Sto Robot Analysis Total . | . . . . . . . Derelict Logs Recovered 2 | . . . . 2 . . Drone Launches . | . . . . . . . Drone Recoveries . | . . . . . . . Exploration | -11 -10 -10 -10 -9 -8 -8 ------------- Run | Yrd Mat Min Exi Min Mat Sto Turns Passed 2657 | 98 693 139 330 414 623 360 Spaces Moved 1459 | 55 397 87 205 259 340 116 Core 4 | 4 . . . . . . Treads 1329 | 51 397 87 205 259 256 74 Legs 126 | . . . . . 84 42 Wheels . | . . . . . . . Hover . | . . . . . . . Flight . | . . . . . . . Fastest Speed 50 | 50 160 160 160 160 160 190 Average Speed 168 | 152 160 160 160 160 174 230 Slowest Speed 470 | 160 160 160 160 160 330 470 Overloaded Moves . | . . . . . . . Propulsion Burnouts . | . . . . . . . Robots Hopped . | . . . . . . . Cave-ins Triggered . | . . . . . . . Exploration Rate (%) 33 | 4 54 22 62 38 27 25 Regions Visited 6 Branch Regions 4 Pre-discovered Areas 2 | . . . . 2 . . Known Exits Taken 1 | . . . . . 1 . Unknown Exits Taken 5 | 1 1 1 1 1 . . Scrap Searched . | . . . . . . . Spaces Dug . | . . . . . . . Terrain Destroyed 119 | . 2 . . . 75 42 Melee . | . . . . . . . Projectile 35 | . . . . . 14 21 AOE 84 | . 2 . . . 61 21 Terrain Rammed . | . . . . . . . Walls Destroyed . | . . . . . . . Machines Disabled . | . . . . . . . Actions | -11 -10 -10 -10 -9 -8 -8 --------- Run | Yrd Mat Min Exi Min Mat Sto Total 1578 | 66 423 87 208 259 372 163 Wait 16 | 1 . 1 . . 8 6 Move 1453 | 54 396 86 204 258 339 116 Hop . | . . . . . . . Pick Up 28 | 4 8 . 1 1 10 4 Fast Attach 7 | 6 . . . . . 1 Attach 16 | . 1 . 1 . 7 7 Detach 5 | . . . 2 . 1 2 Swap 6 | 1 1 . . . 2 2 Drop 6 | . 1 . . . 4 1 Fire 40 | . 16 . . . . 24 Melee . | . . . . . . . Ram . | . . . . . . . Kick . | . . . . . . . Crush 1 | . . . . . 1 . Escape Stasis . | . . . . . . . Rewire . | . . . . . . . Trap . | . . . . . . . Miscellaneous . | . . . . . . . Route ------- -11/Scrapyard -10/Materials (discovered 3 exits: [*Mat] / [*Min x2]) -10/Mines -10/Exiles -9/Mines -8/Materials (discovered 2 exits: *Fac / *Sto) -8/Storage History --------- Turn | Location | Event 24 | -11/Scrapyard | Discovered new exit (range 15) 99 | -11/Scrapyard | Entered Materials 210 | -10/Materials | Discovered new exit (range 14) 300 | -10/Materials | Build established: Mutant 398 | -10/Materials | Discovered new exit (range 8) 459 | -10/Materials | Discovered new exit (range 12) 792 | -10/Materials | Entered Mines 891 | -10/Mines | Received a Mining Laser from a helpful Derelict 923 | -10/Mines | Deemed a non-threat by the Exiles lab entrance 923 | -10/Mines | Discovered new exit (range 6) 931 | -10/Mines | Entered Exiles 931 | -10/Exiles | Accompanied by 1 ally 971 | -10/Exiles | Met 8R-AWN 997 | -10/Exiles | Met EX-HEX 1042 | -10/Exiles | Met EX-BIN 1064 | -10/Exiles | Aligned with FarCom system 1066 | -10/Exiles | Given EX-Vault access code 1106 | -10/Exiles | Opened EX-Vault 1112 | -10/Exiles | Found Prototype Energy Gun 1114 | -10/Exiles | Identified AWS/Thermal 1149 | -10/Exiles | Warned to stay clear of 0b10 Research branches 1190 | -10/Exiles | Met EX-DEC 1248 | -10/Exiles | Discovered new exit (range 10) 1261 | -10/Exiles | Left Exiles lab with AWS/Thermal 1261 | -10/Exiles | Entered Mines 1272 | -9/Mines | Met a Derelict bent on vengeance 1291 | -9/Mines | Received a Rocket Launcher from a helpful Derelict 1358 | -9/Mines | Learned location of Zion (-7) 1362 | -9/Mines | Discovered new exit (range 8) 1675 | -9/Mines | Entered Materials 1675 | -8/Materials | Evolved 4 slots: Power x2, Utility x2 2248 | -8/Materials | Discovered new exit (range 3) 2252 | -8/Materials | Identified exit to Storage 2254 | -8/Materials | Discovered new exit (range 12) 2273 | -8/Materials | Identified exit to Factory 2298 | -8/Materials | Entered Storage 2322 | -8/Storage | Garrison activated, responded to threat 2375 | -8/Storage | AWS/Thermal suddenly broke down 2393 | -8/Storage | Destroyed 7 combat bots 2649 | -8/Storage | Core integrity fell below 50% 2657 | -8/Storage | Core integrity fell below 20% 2659 | -8/Storage | Core destroyed Last Messages --------------- (-49). 02646_ Overheating: Heat Sink damaged (-4). 02648_ Overheating: Energy bleed (-48). 02648_ Hvy. Armor Plating destroyed. 02649_ Overheating: Core damaged (-71). 02649_ U-05 Engineer builds a Wall. 02651_ Overheating: Core damaged (-82). 02652_ Critical hit (Burn: +37). 02653_ Power failure, Imp. Ion Engine shutdown. 02653_ Overheating: Adv. Beam Cannon damaged (-18). 02653_ Overheating: Lrg. Storage Unit damaged (-49). 02653_ Overheating: Broken Lgt. Treads damaged (-9). 02654_ Overheating: Heat Sink damaged (-2). 02655_ Overheating: Matter decay (-15). 02656_ G-47 Trooper destroyed. 02657_ Overheating: Core damaged (-71). 02659_ Overheating: Core damaged (-55). Map ----- +----------------------------------------------------+ | ?????????????#### [ # #???????????????????? | | ????????????????# # #???????????????????? | | ????????????????# + #???????????????????? | | ????????????????# # #???????????????????? | | ????????????????# ####+#######???????????????????? | | ????????????????# #?# #???????????????????? | | ????????????????# #?# #???????????????????? | | ??????????????### #?# ! #???????????????????? | | ?????????###### # #?# #???????????????????? | | ?????????# # #?# #???????????????????? | | ?????????# # #?# #???????????????????? | | ?????????+ |] + #?#] #???????????????????? | | ?????????# |] # #?# ] #???????????????????? | | ?????????# ! # #?# ! #???????????????????? | | ?????????# # ###/##+######??????????????????? | | ?????????##+##+## #??????????????????? | | ??????????# #??????????????????? | | ??????????# ^ #??????????????????? | | ??????????#######+## ###########???????????????? | | ???????????????# %!# # #???????????????? | | ???????????????# # # #???????????????? | | ???????????????# # # #???????????????? | | ???????????Y???#] # k#%% #???????????????? | | ???????????????# ! # %+%= #???????????????? | | ???????????????# # % # ! u #???????????????? | | ???????????????# # # @ #???????????????? | | ???????????????##### # % g #???????????? | | ???????????????????# ########### "#??????????? | | ???????????????????# g #???????????? #??????????? | | ???????????????????# #?????????????????????????? | | ???????????????????# #?????????????????????????? | | ???????????????????# #?????????????????????????? | | ???????????????????# #?????????????????????????? | | ???????????????????# g #?????????????????????????? | | ???????????????????# #?????????????????????????? | | ??????????????????? ???????g??????????????????? | | ??????????????????? ????????????Y?????????????? | | ???????????????????? ??????????????????????????? | | ?????????????????????????????????????????????????? | | ?????????????????????????????????????????????????? | | ?????????????????????????????????????????????????? | | ?????????????????????????????????????????????????? | | ?????????????????????????????????????????????????? | | ?????????????????????????????????????????????????? | | ?????????????????????????????????????????????????? | | ?????????????????????????????????????????????????? | | ?????????????????????????????????????????????????? | | ?????????????????????????????????????????????????? | | ?????????????????????????????????????????????????? | | ?????????????????????????????????????????????????? | +----------------------------------------------------+ Best States ------------- Heat Dissipation 31 Energy Generation 28 Energy Capacity 470 Matter Stores 300 Matter Capacity 300 Sight Range 16 Terrain Scan Density 10 Armor Coverage 600 Utility Shielding 33 Evasion (%) 40 Targeting Accuracy 5 Recoil Reduction 2 Item Schematics ----------------- None Robot Schematics ------------------ None Fabricated ------------ Nothing Alien Tech Used ----------------- None Achievements -------------- None Challenges ------------ None Game ------ Seed TeslaLargeBlaster Manual? 0 Play Time 00:19:34 Cumulative 7.6 hours Start 2024.10.08 @ 16:27:53 End 2024.10.08 @ 16:46:36 Sessions 1 Manual Loads 0 Difficulty Rogue Special Mode None Game No. 24 Rogue 24 Adventurer 0 Explorer 0 Win Type - Total 0 Types 0/0/0/0/0/0/0/0/0 Lore% 5 Gallery% 11 Achievement% 11 Wizard Run 0 Options --------- Layout 1 ASCII 0 Keyboard 0 Movement Numpad Keybinds 0 Fullscreen 1 Font 32/SmallcapsGlow Map View 50x35 Zoom Use 0% Tactical HUD 1 Map Filters NONE Filters NONE Steam 1 RUN: 343c11c1-f88b-4ed9-bf4a-42339f2e7e35